{"text_format":"2","workbook":"xlsx","n_sheets":5,"sheets":["Főösszesítő","Munkanem összesítő","33.","71.","72."],"not_rendered":{"charts":0,"images":0,"macros":0,"external_links":0,"defined_names":0,"comments":0,"pivot_tables":0},"unopened":[],"bounds":{"document_bytes":16777216,"sheet_cells":100000,"run_cost":"one","rows_first":2000,"rows_last":500,"rows_between":2000,"halvings":0,"cell_chars":16384,"cell_head_chars":4096},"cells_cut":0,"cells_raw":0,"read":"whole","date_system":"1900"}

{"sheet":"Főösszesítő","index":0,"n_rows":8,"n_cols":4,"rows_kept":8,"cut":false,"hidden":false,"merged":[[0,0,0,3],[2,0,2,3],[5,2,5,3],[6,2,6,3],[7,2,7,3]]}
["Elektromos munkák"]
["SZTE ÁJTK alagsor",null,null,"2021-04-30"]
["Költségvetés főösszesítő"]
["Megnevezés",null,"Anyagköltség","Díjköltség"]
["1 Építmény közvetlen költségei",null,{"$f":"'Munkanem összesítő'!C5","v":0},{"$f":"'Munkanem összesítő'!D5","v":0}]
["2.1 ÁFA vetítési alap",null,{"$f":"ROUND(C5+D5,0)","v":0}]
["2.2 ÁFA",0.27,{"$f":"ROUND(C6*B7,0)","v":0}]
["3 A munka ára (HUF)",null,{"$f":"ROUND(C7+C6,0)","v":0}]

{"sheet":"Munkanem összesítő","index":1,"n_rows":5,"n_cols":4,"rows_kept":5,"cut":false,"hidden":false,"merged":[]}
["Ssz.","Megnevezés","Anyagköltség","Díjköltség"]
["33","Falazás és egyéb kőműves munkák",{"$f":"'33.'!H6","v":0},{"$f":"'33.'!I6","v":0}]
["71","Elektromos energiaellátás, villanyszerelés",{"$f":"'71.'!H39","v":0},{"$f":"'71.'!I39","v":0}]
["72","Épületautomatika, -felügyelet (gyengeáram)",{"$f":"'72.'!H8","v":0},{"$f":"'72.'!I8","v":0}]
[null,"Összesen (HUF)",{"$f":"ROUND(SUM(C2:C4),0)","v":0},{"$f":"ROUND(SUM(D2:D4),0)","v":0}]

{"sheet":"33.","index":2,"n_rows":6,"n_cols":12,"rows_kept":6,"cut":false,"hidden":false,"merged":[]}
["Ssz.","Tételszám","Tétel szövege","Menny.","E","Anyag egységár","Díj egységre","Anyag összesen","Díj összesen"]
[1,"33-063-3.2.2","Horonyvésés, téglafalban, 8,01-16,00 cm² keresztmetszet között",80,"m",null,null,{"$f":"ROUND(F2*D2,0)","v":0},{"$f":"ROUND(G2*D2,0)","v":0},1.05,0,1105]
[2,"33-063-6.1.1","Fészekfúrás elektromos dobozok részére, P2 pórusbeton falazatban, Ø: 65 mm",26,"db",null,null,{"$f":"ROUND(F3*D3,0)","v":0},{"$f":"ROUND(G3*D3,0)","v":0},1.05,0,520]
[3,"33-063-31.1","Mérési jelölés, kirajzolás horonyvéséshez",80,"m",null,null,{"$f":"ROUND(F4*D4,0)","v":0},{"$f":"ROUND(G4*D4,0)","v":0},1.05,0,65]
[4,"33-063-32.1","Mérési jelölés, kirajzolás dobozhely részére",26,"db",null,null,{"$f":"ROUND(F5*D5,0)","v":0},{"$f":"ROUND(G5*D5,0)","v":0},1.05,0,65]
[null,null,"Munkanem összesen (HUF)",{"$nulls":4},{"$f":"ROUND(SUM(H2:H5),0)","v":0},{"$f":"ROUND(SUM(I2:I5),0)","v":0}]

{"sheet":"71.","index":3,"n_rows":39,"n_cols":12,"rows_kept":39,"cut":false,"hidden":false,"merged":[]}
["Ssz.","Tételszám","Tétel szövege","Menny.","e","Anyag egységár","Díj egységre","Anyag összesen","Díj összesen"]
[1,"71-000-1.1.2","Vezetékek, kábelek és szerelvények bontása; védőcső leszerelése műanyag csőből, tartószerkezetről",90,"m",null,null,{"$f":"ROUND(F2*D2,0)","v":0},{"$f":"ROUND(G2*D2,0)","v":0},1.05,0,455]
[2,"71-000-1.5.1","Vezetékek, kábelek és szerelvények bontása; vörösréz vagy alumínium vezeték leszerelése védőcsőből kihúzva, 10 mm2-ig",135,"m",null,null,0,0,1.05,0,195]
[3,"71-000-1.8","Vezetékek, kábelek és szerelvények bontása; vezetékcsatorna, kábelcsatorna, mellvédcsatorna, padlószegélycsatorna leszerelése",50,"m",null,null,0,0,1.05,0,520]
[4,"71-000-1.9.1","Vezetékek, kábelek és szerelvények bontása; süllyesztett tartozékok bontása, fa vagy fémszekrények, 300x300x80 mm méretig",65,"db",null,null,0,0,1.05,0,1625]
[5,"71-001-1.1.1.1.1-0110116","Merev simafalú és gégecső, műanyag védőcső elhelyezése, elágazó dobozokkal, előre elkészített falhoronyba, vékony vagy vékonyított falú kivitelben, könnyű mechanikai igénybevételre, Névleges méret: 11-16 mm, Beltéri Mü III. vékonyfalú, hajlítható merev műanyag szürke védőcső 16 mm, Kód: MU-III 16",35,"m",null,null,0,0,1.05,92,715]
[6,"71-001-1.3.2-0110054","Merev simafalú és gégecső, műanyag védőcső elhelyezése, elágazó dobozokkal, könnyűszerkezetes (szerelt) falszerkezetbe, Névleges méret: 20-32 mm, Mü II. vékonyított falú védőcső, 25 mm, Kód: MU-II 25",10,"m",null,null,0,0,1.05,222,1365]
[7,"71-001-12.1-0121073","Gipszkarton szerelvénydoboz beépítése,üregfúrás nélkül,(szerelvénydoboz, mélyített szerelvény és kötődoboz, (fedéllel)kettős szerelvénydoboz fedéllel), elágazó doboz, 60 mm mélységig, kör vagy négyszög alakú, max. ötös sorolásig, Beltéri süllyeszthető gipszkarton doboz, Kód: ÜGD 60",18,"db",null,null,0,0,1.05,141,1365]
[8,"71-001-11.1.1-0123022","Elágazó doboz illetve szerelvénydoboz elhelyezése, süllyesztve, fészekvésés nélkül, 30-60 mm mélységig, kör vagy négyszög alakú, max. négyes sorolásig, KAISER szerelvénydoboz téglafalba, öblös változat, R: 1069-02",26,"db",null,null,0,0,1.05,1321,1365]
[9,"71-001-24.1.1-0130021","Műanyag vezetékcsatorna, padlószegélycsatorna elhelyezése előre elkészített tartószerkezetre szerelve, idomdarabok nélkül, szélesség: 40 mm-ig, Beltéri könnyű kivitelű műanyag kábelcsatorna, sima, fehér 25x25 mm, Kód: MCSN 25*25F",120,"m",null,null,0,0,1.05,324,1885]
[10,"71-002-1.1-0210003","Szigetelt vezeték elhelyezése védőcsőbe húzva vagy vezetékcsatornába fektetve, rézvezetővel, leágazó kötésekkel, szigetelés ellenállás méréssel, a szerelvényekhez csatlakozó vezetékvégek bekötése nélkül, keresztmetszet: 0,5-2,5 mm², Cabling Systems Hungary H07V-U 450/750V 1x2,5 mm², tömör rézvezetővel (MCu)",350,"m",null,null,0,0,1.05,89,130]
[11,"71-002-1.1-0210002","Szigetelt vezeték elhelyezése védőcsőbe húzva vagy vezetékcsatornába fektetve, rézvezetővel, leágazó kötésekkel, szigetelés ellenállás méréssel, a szerelvényekhez csatlakozó vezetékvégek bekötése nélkül, keresztmetszet: 0,5-2,5 mm², Cabling Systems Hungary H07V-U 450/750V 1x1,5 mm², tömör rézvezetővel (MCu)",80,"m",null,null,0,0,1.05,69,130]
[12,"71-002-1.1-0224429","Szigetelt vezeték elhelyezése védőcsőbe húzva vagy vezetékcsatornába fektetve, rézvezetővel, leágazó kötésekkel, szigetelés ellenállás méréssel, a szerelvényekhez csatlakozó vezetékvégek bekötése nélkül, keresztmetszet: 0,5-2,5 mm², Cabling Systems Hungary NYM-J 3x1,5 tömör (300/500V) MBCU kábel",160,"m",null,null,0,0,1.05,146,130]
[13,"71-002-1.1-0224430","Szigetelt vezeték elhelyezése védőcsőbe húzva vagy vezetékcsatornába fektetve, rézvezetővel, leágazó kötésekkel, szigetelés ellenállás méréssel, a szerelvényekhez csatlakozó vezetékvégek bekötése nélkül, keresztmetszet: 0,5-2,5 mm², Cabling Systems Hungary NYM-J 3x2,5 tömör (300/500V) MBCU kábel",180,"m",null,null,0,0,1.05,257,130]
[14,"71-003-9-0310345","Vezetékösszekötők elhelyezése, WAGO 222-415 nyitható vezetékösszekötő gyorscsatlakozó rugós 5x0,08-2,5 mm2 32A",90,"db",null,null,0,0,1.05,204,520]
[15,"71-003-9-0310343","Vezetékösszekötők elhelyezése, WAGO 222-413 nyitható vezetékösszekötő gyorscsatlakozó rugós 3x0,08-2,5 mm2 32A",90,"db",null,null,0,0,1.05,128,520]
[16,"71-003-13.1-0630046","Fésűs sín felszerelése kismegszakítókra, 13 modul méretig, LEGRAND Lexic fésűs sín villás 3P 4x3P (Kat.szám:404917)",3,"db",null,null,0,0,1.05,2820,2405]
[17,"71-005-1.1.1.1-0230103","Komplett világítási  és telekommunikációs szerelvények, Fali kapcsolók elhelyezése, süllyesztve, 10-16A egypólusú kapcsolók, LEGRAND Valena Life egypólusú kapcsoló kerettel, fehér",6,"db",null,null,0,0,1.05,1670,2080]
[18,"71-005-1.1.1.1-0230108","Komplett világítási  és telekommunikációs szerelvények, Fali kapcsolók elhelyezése, süllyesztve, 10-16A egypólusú kapcsolók, LEGRAND Valena Life egypólusú nyomó kerettel, fehér",4,"db",null,null,0,0,1.05,2370,2080]
[19,"71-005-1.1.1.4-0545314","Komplett világítási  és telekommunikációs szerelvények, Fali kapcsolók elhelyezése, süllyesztve, 10-16A kétáramkörös (csillár) kapcsolók, LEGRAND Valena Life csillárkapcsoló, körömmel, fehér",1,"db",null,null,0,0,1.05,2498,2080]
[20,"71-005-1.11.1.1.1-0562064","Komplett világítási  és telekommunikációs szerelvények, Csatlakozóaljzat elhelyezése, süllyesztve, 16A, földelt, egyes csatlakozóaljzat (2P+F), LEGRAND Valena Life 2P+F csatlakozóaljzat monoblokk, fehér",42,"db",null,null,0,0,1.05,1810,2080]
[21,"71-005-1.11.2.1.1-0562546","Komplett világítási  és telekommunikációs szerelvények, Csatlakozóaljzat elhelyezése, előre elkészített tartószerkezetre, falon kívül, 16A, földelt, egyes csatlakozóaljzat (2P+F), LEGRAND Oteo falonkívüli keskeny egypólusú kapcsoló kerettel fehér (Kat.szám:086084)",6,"db",null,null,0,0,1.05,4280,2080]
[22,"71-006-5.1.1.1-0316621","Mágneskapcsolók, kontaktorok, Mágneskapcsolók elhelyezése,  hőrelé nélkül, TS 35 sínre pattintható kivitelben, 72A üzemi áramig, Schneider Electric Acti9 iCT40A 4NO 220-240 VAC moduláris kontaktor, R: A9C20844",1,"db",null,null,0,0,1.05,30042,9165]
[23,"71-006-12.3.1.1-0316502","Relék (idő, impulzus, stb.), lépcsőházi automaták, kapcsólóórák, kapcsolóórák elhelyezése, mechanikus, szerelőlapra vagy kalapsínre, Schneider Electric IH időkapcsoló 60 perc 1 csatornás, R: CCT15338",1,"db",null,null,0,0,1.05,15276,4030]
[24,"71-008-11.1.1.2-0122537","Áram-védőkapcsolók elhelyezése, váltakozó- és pulzáló egyenáramú kioldásra, gyorskioldással (6...40 ms), 6 kA zárlati szilárdsággal, 4 pólusú, Schneider Electric Acti9 iID 4P 40A 30mA A-típus áramvédő, R: A9Z21440",4,"db",null,null,0,0,1.05,26918,8450]
[25,"71-008-9.3.1-0623116","Kismegszakítók és kiegészítők elhelyezése kalapsínes szerelőlapra,\"B\", \"C\" és \"D\" jelleggörbével, 6 kA zárlati szilárdsággal, 1 pólusú, Schneider Electric Acti9 iC60N 1P 10A B kismegszakító, R: A9F03110",10,"db",null,null,0,0,1.05,1944,4030]
[26,"71-008-9.3.1-0623117","Kismegszakítók és kiegészítők elhelyezése kalapsínes szerelőlapra,\"B\", \"C\" és \"D\" jelleggörbével, 6 kA zárlati szilárdsággal, 1 pólusú, Schneider Electric Acti9 iC60N 1P 16A B kismegszakító, R: A9F03116",12,"db",null,null,0,0,1.05,1852,4030]
[27,"71-010-1.6-0640141","Felületre szerelt lámpatest elhelyezése  előre elkészített tartószerkezetre, tükrös, nyitott, LED-es kivitelben, TUNGSRAM LED Torofi P LED 45W 5000lm 1200mm 840 S085 B10 4000K IP20 UGR<16 CRI80+ 220-240V tükrös, mennyezeti, függesztett lámpatest, Csz:93115834",16,"db",null,null,0,0,1.05,38478,9555]
[28,"71-010-12.11.1.1.6-0114113","(Akkumulátoros vészvilágítás)  Tartalék világítási lámpatestek elhelyezése, saját akkumulátoros, készenléti üzemű, falon kívüli vagy mennyezeti kivitelben, LED-es kivitelben, ASM Security CL-6016 tartalékvilágítási lámpatest, saját akkumulátoros, készenléti üzemű, oldalfalra és mennyezetre szerelhető, LED: 6W, 120-240V AC-DC, IP65, 1-3h, Ni-Mh, 25mAh, Polycarbonate/White, UL, CE, Cikkszám: CL-6016 SLAVE/CON/MB",7,"db",null,null,0,0,1.05,13493,4680]
[29,"71-010-13.2.1.2.1.3.3-0182203","LED-es alumínium profil elhelyezése vonalba vagy alakzatba, bútor profilok, (LED szalag külön tételben), felületre, sarok vagy sík felületre, egy LED szalagos profil, (fedő búra, végzáró, kapcsoló külön tételben), rögzítővel szerelve, 3,0 m-es elemekből, Lumines Led - Profil H, 30°/60°-ban döntött, natúr, natúr alumínium, méret(mm): 16,9x16,6x3000, term.kód: H-31, katalógus: 10-0450-30",1,"db",null,null,0,0,1.05,2915,2275]
[30,"71-010-13.2.1.2.8.1.3-0184008","LED-es alumínium profil elhelyezése vonalba vagy alakzatba, bútor profilok, (LED szalag külön tételben), felületre, sarok vagy sík felületre, profil kiegészítő elemek, takaró búra profil, C/H profilhoz, 3,0 m-es elemekből, Lumines Led - Takaróprofil, basic, víztiszta PVC, 88%, méret(mm):13x3x3000, term.kód:TP-31, katalógus:11-1013-30",1,"db",null,null,0,0,1.05,705,455]
[31,"71-010-13.2.1.2.8.2-0185034","LED-es alumínium profil elhelyezése vonalba vagy alakzatba, bútor profilok, (LED szalag külön tételben), felületre, sarok vagy sík felületre, profil kiegészítő elemek, végzáró, Lumines Led - Alumínium végzáró H profilhoz, jobbos / balos, 2 szín, teli / lyukas, term.kód:04-H-ALU, katalógus:12-0265-11",2,"db",null,null,0,0,1.05,1838,130]
[32,"71-010-13.11.2-0185313","LED-es alumínium profil elhelyezése vonalba vagy alakzatba, alumínium LED profil kiegészítők, profil rögzítő elem, Lumines Led - Alumínium rögzítő elem C és H profilhoz, term.kód:06-UCH-CH, katalógus:13-0120-02",6,"db",null,null,0,0,1.05,165,520]
[33,"71-011-6.2.2.3.1-0187232","LED-es fényforrások, általános és dekorációs világítás céljára, színes fényű, vonalszerű kivitelben, szalagok és kiegészítőinek elhelyezése, LED szalag alu profilba helyezése, elektromos kötések készítése,, Ledlámpaház - Led szalag 3535 RGB SMD 60 led/m 12W/m DC24V IP68 1080 lm/m, 3 év jótállás, 2 rétegű PCB 10 mm széles, term.kód: W-3535-60RGB3K24",3,"m",null,null,0,0,1.05,2714,2860]
[34,"71-011-6.11.1","LED-es fényforrások, tápegységei, lakossági felhasználásra",1,"db",null,null,0,0,1.05,7845,715]
[35,"71-012-1.1-0210021","Villamos háztartási főzőkészülék bekötése segédanyagokkal",1,"db",null,null,0,0,1.05,2500,12350]
[36,"71-013-9","Villám és érintésvédelmi mérés és jegyzőkönyv készítése",130,"mp*",null,null,0,0,1.05,0,1300]
[37,"71-004-1.3","Acél tartószerkezet helyszínen gyártva, beépítéssel, tömeghatár: 10,1-15,0 kg/db között Projektor tartó konzol.",3,"kg",null,null,0,0,1.05,26572,21060]
[null,null,"Munkanem összesen (HUF)",{"$nulls":4},{"$f":"ROUND(SUM(H2:H38),0)","v":0},{"$f":"ROUND(SUM(I2:I38),0)","v":0}]

{"sheet":"72.","index":4,"n_rows":8,"n_cols":12,"rows_kept":8,"cut":false,"hidden":false,"merged":[]}
["Ssz.","Tételszám","Tétel szövege","Menny.","E","Anyag egységár","Díj egységre","Anyag összesen","Díj összesen"]
[1,"72-000-41.1.1","Informatikai rendszerek, strukturált adatátviteli kábel bontása, falikábel",305,"m",null,null,{"$f":"ROUND(F2*D2,0)","v":0},{"$f":"ROUND(G2*D2,0)","v":0},1.05,0,65]
[2,"72-000-41.19","Informatikai rendszerek, strukturált adatátviteli csatlakozóaljzat bontása",14,"db",null,null,0,0,1.05,0,1300]
[3,"72-041-1.1.1.1.2-0223362","Strukturált adatátviteli kábel elhelyezése tömör rézvezetővel, védőcsőbe húzva, kábeltálcára vagy kábelcsatornába fektetve, falikábel, 100 MHz frekvenciatartomány Cat.5E F/UTP, LEGRAND LCS5 fali kábel F/UTP,LSZH 305m 0,5mm 4x2 (Kat.szám:032752)",610,"m",null,null,0,0,1.05,252,390]
[4,"72-041-151.1","Veszteségmérés 2 végpont között műszerrel,  mérés eredményéről jegyzőkönyv készítése, rézkábel esetén",28,"db",null,null,0,0,1.05,0,6500]
[5,"72-041-152.1","Diagnosztikai vizsgálat végpontokra számolva,vizsgálat műszerrel, vizsgálat eredményéről jegyzőkönyv készítése, rézkábel esetén",28,"db",null,null,0,0,1.05,0,715]
[6,"72-041-111.1.2-0110017","Strukturált adatátviteli csatlakozóaljzat elhelyezése, süllyesztett/falon kívüli, CAT 5, árnyékolt, Cabling Systems Hungary  falialjzat DATA keystone modulhoz 2x",14,"db",null,null,0,0,1.05,2506,3445]
[null,null,"Munkanem összesen (HUF)",{"$nulls":4},{"$f":"ROUND(SUM(H2:H7),0)","v":0},{"$f":"ROUND(SUM(I2:I7),0)","v":0}]